[Event "Titled Tuesday Blitz May 03 Late 2022"]
[White "Hnydiuk, Aleksander"]
[Black "Migot, Tangi"]
[WhiteFideId "1109057"]
[BlackFideId "662445"]
[WhiteElo "2374"]
[BlackElo "2505"]
[Result "0-1"]
[Round "07"]
[TimeControl "180+1"]
[Date "2022.05.03"]
[WhiteClock "0:00:01"]
[BlackClock "0:00:14"]

1. e4 {[%clk 0:03:00]}  c5 {[%clk 0:02:59]} 2. Nf3 {[%clk 0:03:00]}  Nc6 {[%clk 0:03:00]} 3. d4 {[%clk 0:02:59]}  cxd4 {[%clk 0:03:01]} 4. Nxd4 {[%clk 0:02:59]}  e5 {[%clk 0:03:02]} 5. Nb5 {[%clk 0:02:59]}  a6 {[%clk 0:03:02]} 6. Nd6+ {[%clk 0:02:58]}  Bxd6 {[%clk 0:03:02]} 7. Qxd6 {[%clk 0:02:59]}  Qf6 {[%clk 0:03:03]} 8. Qd1 {[%clk 0:02:57]}  Qg6 {[%clk 0:03:03]} 9. Nc3 {[%clk 0:02:56]}  d5 {[%clk 0:03:03]} 10. Nxd5 {[%clk 0:02:40]}  Qxe4+ {[%clk 0:03:02]} 11. Be2 {[%clk 0:02:23]}  Nd4 {[%clk 0:03:00]} 12. Nc7+ {[%clk 0:02:19]}  Ke7 {[%clk 0:02:57]} 13. Nxa8 {[%clk 0:02:16]}  Qxg2 {[%clk 0:02:42]} 14. Rf1 {[%clk 0:02:14]}  Bh3 {[%clk 0:02:42]} 15. Be3 {[%clk 0:01:34]}  Nf6 {[%clk 0:01:45]} 16. Bxd4 {[%clk 0:01:31]}  exd4 {[%clk 0:01:46]} 17. Qxd4 {[%clk 0:01:14]}  Rxa8 {[%clk 0:01:39]} 18. O-O-O {[%clk 0:01:14]}  Qc6 {[%clk 0:01:19]} 19. Bf3 {[%clk 0:01:10]}  Qxf3 {[%clk 0:00:59]} 20. Rfe1+ {[%clk 0:01:10]}  Be6 {[%clk 0:00:59]} 21. Qd6+ {[%clk 0:00:54]}  Ke8 {[%clk 0:00:59]} 22. Re3 {[%clk 0:00:44]}  Qc6 {[%clk 0:00:51]} 23. Qa3 {[%clk 0:00:38]}  Rc8 {[%clk 0:00:48]} 24. Rc3 {[%clk 0:00:38]}  Qb6 {[%clk 0:00:32]} 25. Rxc8+ {[%clk 0:00:35]}  Bxc8 {[%clk 0:00:33]} 26. f3 {[%clk 0:00:27]}  Be6 {[%clk 0:00:32]} 27. Kb1 {[%clk 0:00:25]}  Nd5 {[%clk 0:00:29]} 28. Qd3 {[%clk 0:00:17]}  g6 {[%clk 0:00:22]} 29. a3 {[%clk 0:00:17]}  Qe3 {[%clk 0:00:20]} 30. Qxe3 {[%clk 0:00:14]}  Nxe3 {[%clk 0:00:20]} 31. Rd4 {[%clk 0:00:14]}  Nf5 {[%clk 0:00:19]} 32. Rb4 {[%clk 0:00:13]}  b5 {[%clk 0:00:19]} 33. a4 {[%clk 0:00:13]}  Bd7 {[%clk 0:00:18]} 34. Kc1 {[%clk 0:00:12]}  Nd6 {[%clk 0:00:17]} 35. axb5 {[%clk 0:00:10]}  axb5 {[%clk 0:00:17]} 36. b3 {[%clk 0:00:09]}  Bc6 {[%clk 0:00:17]} 37. Rd4 {[%clk 0:00:06]}  Ke7 {[%clk 0:00:17]} 38. Rd3 {[%clk 0:00:06]}  Ke6 {[%clk 0:00:17]} 39. Kd2 {[%clk 0:00:06]}  h5 {[%clk 0:00:17]} 40. Ke3 {[%clk 0:00:06]}  g5 {[%clk 0:00:17]} 41. Rd1 {[%clk 0:00:05]}  f5 {[%clk 0:00:16]} 42. f4 {[%clk 0:00:04]}  g4 {[%clk 0:00:15]} 43. Ra1 {[%clk 0:00:03]}  h4 {[%clk 0:00:15]} 44. Ra7 {[%clk 0:00:02]}  g3 {[%clk 0:00:14]} 45. hxg3 {[%clk 0:00:03]}  hxg3 {[%clk 0:00:15]} 46. Rg7 {[%clk 0:00:03]}  Ne4 {[%clk 0:00:14]} 47. Rg6+ {[%clk 0:00:02]}  Kd5 {[%clk 0:00:13]} 48. c4+ {[%clk 0:00:01]}  bxc4 {[%clk 0:00:13]} 49. bxc4+ {[%clk 0:00:01]}  Kc5 {[%clk 0:00:14]} 0-1


[Site "https://www.chess.com"]

[Event "Titled Tuesday Blitz May 03 Late 2022"]
[White "Hoffmann, Asa"]
[Black "Toncheva, Nadya"]
[WhiteFideId "2001470"]
[BlackFideId "2924056"]
[WhiteElo "2117"]
[BlackElo "1884"]
[Result "0-1"]
[Round "07"]
[TimeControl "180+1"]
[Date "2022.05.03"]
[WhiteClock "0:00:35"]
[BlackClock "0:00:36"]

1. d4 {[%clk 0:01:59]}  Nf6 {[%clk 0:03:00]} 2. Bg5 {[%clk 0:01:58]}  Ne4 {[%clk 0:02:57]} 3. Bf4 {[%clk 0:01:56]}  d5 {[%clk 0:02:51]} 4. f3 {[%clk 0:01:55]}  Nf6 {[%clk 0:02:50]} 5. e4 {[%clk 0:01:55]}  dxe4 {[%clk 0:02:48]} 6. Nc3 {[%clk 0:01:55]}  exf3 {[%clk 0:02:43]} 7. Nxf3 {[%clk 0:01:54]}  c6 {[%clk 0:02:40]} 8. Bc4 {[%clk 0:01:53]}  Bf5 {[%clk 0:02:35]} 9. Qe2 {[%clk 0:01:52]}  e6 {[%clk 0:02:35]} 10. O-O-O {[%clk 0:01:52]}  Bd6 {[%clk 0:02:35]} 11. Ne5 {[%clk 0:01:51]}  Qe7 {[%clk 0:02:13]} 12. g4 {[%clk 0:01:51]}  Bg6 {[%clk 0:02:11]} 13. h4 {[%clk 0:01:50]}  Bxe5 {[%clk 0:01:58]} 14. dxe5 {[%clk 0:01:45]}  Nd5 {[%clk 0:01:58]} 15. Bxd5 {[%clk 0:01:40]}  exd5 {[%clk 0:01:41]} 16. h5 {[%clk 0:01:39]}  Be4 {[%clk 0:01:41]} 17. Nxe4 {[%clk 0:01:39]}  dxe4 {[%clk 0:01:42]} 18. Qxe4 {[%clk 0:01:39]}  Nd7 {[%clk 0:01:41]} 19. h6 {[%clk 0:01:32]}  g6 {[%clk 0:01:38]} 20. Rd6 {[%clk 0:01:25]}  Nc5 {[%clk 0:01:17]} 21. Qe3 {[%clk 0:01:14]}  Ne6 {[%clk 0:01:15]} 22. Rhd1 {[%clk 0:01:12]}  O-O {[%clk 0:01:10]} 23. Rd7 {[%clk 0:01:10]}  Qb4 {[%clk 0:01:02]} 24. Bg5 {[%clk 0:01:08]}  Qxg4 {[%clk 0:00:57]} 25. Bf6 {[%clk 0:01:03]}  b5 {[%clk 0:00:48]} 26. Qc3 {[%clk 0:00:49]}  b4 {[%clk 0:00:36]} 27. Qc5 {[%clk 0:00:35]}  Nxc5 {[%clk 0:00:36]} 0-1


[Site "https://www.chess.com"]

[Event "Titled Tuesday Blitz May 03 Late 2022"]
[White "Jacobson, Brandon"]
[Black "Shimanov, Aleksandr"]
[WhiteFideId "30901561"]
[BlackFideId "4198603"]
[WhiteElo "2362"]
[BlackElo "2636"]
[Result "0-1"]
[Round "07"]
[TimeControl "180+1"]
[Date "2022.05.03"]
[WhiteClock "0:00:10"]
[BlackClock "0:00:17"]

1. d4 {[%clk 0:03:00]}  d5 {[%clk 0:02:53]} 2. c4 {[%clk 0:03:01]}  e6 {[%clk 0:02:51]} 3. Nf3 {[%clk 0:03:01]}  Nf6 {[%clk 0:02:51]} 4. g3 {[%clk 0:03:01]}  Nbd7 {[%clk 0:02:46]} 5. Bg2 {[%clk 0:03:00]}  dxc4 {[%clk 0:02:46]} 6. Nfd2 {[%clk 0:02:50]}  e5 {[%clk 0:02:37]} 7. Nxc4 {[%clk 0:02:44]}  exd4 {[%clk 0:02:37]} 8. Qxd4 {[%clk 0:02:41]}  Bc5 {[%clk 0:02:36]} 9. Qd3 {[%clk 0:02:30]}  O-O {[%clk 0:02:33]} 10. O-O {[%clk 0:02:29]}  Nb6 {[%clk 0:02:18]} 11. Qxd8 {[%clk 0:02:07]}  Rxd8 {[%clk 0:02:19]} 12. Na5 {[%clk 0:02:08]}  c6 {[%clk 0:02:19]} 13. Nc3 {[%clk 0:02:07]}  Bb4 {[%clk 0:02:18]} 14. Nb3 {[%clk 0:02:06]}  Be6 {[%clk 0:02:16]} 15. Be3 {[%clk 0:01:53]}  Nc4 {[%clk 0:02:12]} 16. Bc5 {[%clk 0:01:51]}  a5 {[%clk 0:02:12]} 17. a3 {[%clk 0:01:34]}  Bxc3 {[%clk 0:01:46]} 18. bxc3 {[%clk 0:01:35]}  a4 {[%clk 0:01:37]} 19. Nd4 {[%clk 0:01:31]}  Bd5 {[%clk 0:01:36]} 20. Rfb1 {[%clk 0:01:20]}  Bxg2 {[%clk 0:01:27]} 21. Kxg2 {[%clk 0:01:20]}  Ne4 {[%clk 0:01:28]} 22. Rb4 {[%clk 0:01:11]}  Ncd2 {[%clk 0:00:50]} 23. Bb6 {[%clk 0:01:04]}  Rd7 {[%clk 0:00:49]} 24. Rd1 {[%clk 0:00:54]}  Nb3 {[%clk 0:00:44]} 25. Rc4 {[%clk 0:00:24]}  Ned2 {[%clk 0:00:21]} 26. Nxb3 {[%clk 0:00:14]}  Nxc4 {[%clk 0:00:20]} 27. Rxd7 {[%clk 0:00:14]}  axb3 {[%clk 0:00:20]} 28. Rxb7 {[%clk 0:00:15]}  b2 {[%clk 0:00:18]} 29. Bc5 {[%clk 0:00:14]}  h5 {[%clk 0:00:18]} 30. f3 {[%clk 0:00:10]}  Ra5 {[%clk 0:00:17]} 0-1


[Site "https://www.chess.com"]

[Event "Titled Tuesday Blitz May 03 Late 2022"]
[White "Karttunen, Mika"]
[Black "Mikhailov, Viacheslav"]
[WhiteFideId "502081"]
[BlackFideId "4187369"]
[WhiteElo "2343"]
[BlackElo "2381"]
[Result "0-1"]
[Round "07"]
[TimeControl "180+1"]
[Date "2022.05.03"]
[WhiteClock "0:00:01"]
[BlackClock "0:00:03"]

1. e4 {[%clk 0:03:00]}  d6 {[%clk 0:02:59]} 2. d4 {[%clk 0:03:00]}  Nf6 {[%clk 0:02:59]} 3. f3 {[%clk 0:02:59]}  g6 {[%clk 0:02:59]} 4. Be3 {[%clk 0:02:59]}  Bg7 {[%clk 0:03:00]} 5. c4 {[%clk 0:02:58]}  O-O {[%clk 0:03:00]} 6. Nc3 {[%clk 0:02:58]}  e5 {[%clk 0:03:00]} 7. d5 {[%clk 0:02:57]}  Nh5 {[%clk 0:02:57]} 8. g4 {[%clk 0:02:48]}  Nf4 {[%clk 0:02:56]} 9. h4 {[%clk 0:02:44]}  f5 {[%clk 0:02:54]} 10. g5 {[%clk 0:02:41]}  fxe4 {[%clk 0:02:53]} 11. Nxe4 {[%clk 0:02:26]}  Bf5 {[%clk 0:02:53]} 12. Qd2 {[%clk 0:02:18]}  Nd7 {[%clk 0:02:50]} 13. Ne2 {[%clk 0:02:03]}  Bxe4 {[%clk 0:02:42]} 14. fxe4 {[%clk 0:02:02]}  Nc5 {[%clk 0:02:42]} 15. Nc3 {[%clk 0:01:54]}  a5 {[%clk 0:02:34]} 16. O-O-O {[%clk 0:01:52]}  b6 {[%clk 0:02:33]} 17. Kb1 {[%clk 0:01:52]}  Qd7 {[%clk 0:02:32]} 18. Rg1 {[%clk 0:01:33]}  Rf7 {[%clk 0:02:28]} 19. Rg3 {[%clk 0:01:32]}  Raf8 {[%clk 0:02:28]} 20. Be2 {[%clk 0:01:20]}  Nxe2 {[%clk 0:02:22]} 21. Qxe2 {[%clk 0:01:20]}  a4 {[%clk 0:01:31]} 22. h5 {[%clk 0:01:19]}  a3 {[%clk 0:01:30]} 23. b3 {[%clk 0:01:06]}  Rf4 {[%clk 0:01:29]} 24. Bxc5 {[%clk 0:00:51]}  bxc5 {[%clk 0:01:26]} 25. hxg6 {[%clk 0:00:50]}  hxg6 {[%clk 0:01:26]} 26. Qe3 {[%clk 0:00:18]}  Qf7 {[%clk 0:01:20]} 27. Nb5 {[%clk 0:00:17]}  Rf1 {[%clk 0:01:16]} 28. Rc1 {[%clk 0:00:11]}  Rxc1+ {[%clk 0:01:02]} 29. Qxc1 {[%clk 0:00:11]}  Qf2 {[%clk 0:00:59]} 30. Re3 {[%clk 0:00:09]}  Qg2 {[%clk 0:00:49]} 31. Nxa3 {[%clk 0:00:09]}  Qxg5 {[%clk 0:00:43]} 32. Nc2 {[%clk 0:00:09]}  Bh6 {[%clk 0:00:40]} 33. Qh1 {[%clk 0:00:08]}  Kg7 {[%clk 0:00:32]} 34. Rh3 {[%clk 0:00:06]}  Qd2 {[%clk 0:00:32]} 35. Rh2 {[%clk 0:00:06]}  Qd3 {[%clk 0:00:28]} 36. Rxh6 {[%clk 0:00:05]}  Rf1+ {[%clk 0:00:28]} 37. Kb2 {[%clk 0:00:05]}  Rxh1 {[%clk 0:00:28]} 38. Rxh1 {[%clk 0:00:06]}  Qxe4 {[%clk 0:00:29]} 39. Re1 {[%clk 0:00:05]}  Qd3 {[%clk 0:00:23]} 40. a4 {[%clk 0:00:06]}  Qd2 {[%clk 0:00:23]} 41. Ra1 {[%clk 0:00:05]}  Qa5 {[%clk 0:00:21]} 42. Rg1 {[%clk 0:00:03]}  e4 {[%clk 0:00:21]} 43. Re1 {[%clk 0:00:02]}  g5 {[%clk 0:00:18]} 44. Rxe4 {[%clk 0:00:03]}  Qd2 {[%clk 0:00:17]} 45. Re7+ {[%clk 0:00:02]}  Kg6 {[%clk 0:00:17]} 46. Re6+ {[%clk 0:00:02]}  Kh5 {[%clk 0:00:16]} 47. Re1 {[%clk 0:00:03]}  g4 {[%clk 0:00:17]} 48. Ra1 {[%clk 0:00:03]}  g3 {[%clk 0:00:16]} 49. a5 {[%clk 0:00:03]}  Qg5 {[%clk 0:00:13]} 50. a6 {[%clk 0:00:03]}  Qg7+ {[%clk 0:00:13]} 51. Ka3 {[%clk 0:00:02]}  g2 {[%clk 0:00:09]} 52. a7 {[%clk 0:00:02]}  Qg8 {[%clk 0:00:06]} 53. Rg1 {[%clk 0:00:02]}  Qa8 {[%clk 0:00:05]} 54. Rxg2 {[%clk 0:00:03]}  Qxa7+ {[%clk 0:00:06]} 55. Kb2 {[%clk 0:00:03]}  Qb8 {[%clk 0:00:06]} 56. Re2 {[%clk 0:00:04]}  Kg4 {[%clk 0:00:07]} 57. Re3 {[%clk 0:00:04]}  Kf4 {[%clk 0:00:07]} 58. Re7 {[%clk 0:00:04]}  Qd8 {[%clk 0:00:06]} 59. Re6 {[%clk 0:00:04]}  Qh8+ {[%clk 0:00:05]} 60. Kb1 {[%clk 0:00:04]}  Qc3 {[%clk 0:00:05]} 61. Na1 {[%clk 0:00:02]}  Qd3+ {[%clk 0:00:02]} 62. Kb2 {[%clk 0:00:02]}  Qd2+ {[%clk 0:00:02]} 63. Nc2 {[%clk 0:00:02]}  Qa5 {[%clk 0:00:03]} 64. Re7 {[%clk 0:00:03]}  Kf5 {[%clk 0:00:04]} 65. Re6 {[%clk 0:00:03]}  Qb6 {[%clk 0:00:04]} 66. Re3 {[%clk 0:00:03]}  c6 {[%clk 0:00:04]} 67. dxc6 {[%clk 0:00:03]}  Qxc6 {[%clk 0:00:05]} 68. Rd3 {[%clk 0:00:04]}  Qc7 {[%clk 0:00:04]} 69. Rd5+ {[%clk 0:00:04]}  Kf6 {[%clk 0:00:04]} 70. Rd1 {[%clk 0:00:05]}  Qg7 {[%clk 0:00:03]} 71. Rd5 {[%clk 0:00:06]}  Ke6+ {[%clk 0:00:03]} 72. Kb1 {[%clk 0:00:04]}  Qc3 {[%clk 0:00:04]} 73. Na1 {[%clk 0:00:05]}  Qe3 {[%clk 0:00:03]} 74. Rd1 {[%clk 0:00:05]}  Qe4+ {[%clk 0:00:03]} 75. Nc2 {[%clk 0:00:04]}  Kd7 {[%clk 0:00:03]} 76. Re1 {[%clk 0:00:04]}  Qd3 {[%clk 0:00:03]} 77. Kb2 {[%clk 0:00:05]}  Qg6 {[%clk 0:00:03]} 78. Re3 {[%clk 0:00:05]}  Kc6 {[%clk 0:00:03]} 79. Re2 {[%clk 0:00:04]}  Qf6+ {[%clk 0:00:03]} 80. Kb1 {[%clk 0:00:04]}  Qc3 {[%clk 0:00:04]} 81. Re3 {[%clk 0:00:04]}  Qd2 {[%clk 0:00:04]} 82. Rg3 {[%clk 0:00:03]}  Kb6 {[%clk 0:00:02]} 83. Rg8 {[%clk 0:00:02]}  Qd1+ {[%clk 0:00:02]} 84. Kb2 {[%clk 0:00:02]}  Qf3 {[%clk 0:00:03]} 85. Rb8+ {[%clk 0:00:01]}  Ka6 {[%clk 0:00:03]} 0-1


[Site "https://www.chess.com"]

[Event "Titled Tuesday Blitz May 03 Late 2022"]
[White "Kate1606"]
[Black "Romero Ruscalleda, Josep"]
[BlackFideId "2231859"]
[WhiteElo "2131"]
[BlackElo "2267"]
[Result "0-1"]
[Round "07"]
[TimeControl "180+1"]
[Date "2022.05.03"]
[WhiteClock "0:02:23"]
[BlackClock "0:02:53"]

1. e4 {[%clk 0:03:00]}  g6 {[%clk 0:03:00]} 2. d4 {[%clk 0:02:58]}  Bg7 {[%clk 0:03:00]} 3. c4 {[%clk 0:02:55]}  d6 {[%clk 0:03:01]} 4. Nc3 {[%clk 0:02:55]}  e5 {[%clk 0:03:01]} 5. Nge2 {[%clk 0:02:50]}  Nc6 {[%clk 0:03:01]} 6. d5 {[%clk 0:02:44]}  Nce7 {[%clk 0:03:00]} 7. Be3 {[%clk 0:02:43]}  f5 {[%clk 0:03:01]} 8. f3 {[%clk 0:02:40]}  Nf6 {[%clk 0:03:00]} 9. Qd2 {[%clk 0:02:39]}  O-O {[%clk 0:03:00]} 10. O-O-O {[%clk 0:02:39]}  fxe4 {[%clk 0:02:57]} 11. Nxe4 {[%clk 0:02:25]}  Nf5 {[%clk 0:02:57]} 12. Bg1 {[%clk 0:02:24]}  Nxe4 {[%clk 0:02:53]} 13. fxe4 {[%clk 0:02:23]}  Bh6 {[%clk 0:02:53]} 0-1


[Site "https://www.chess.com"]

[Event "Titled Tuesday Blitz May 03 Late 2022"]
[White "Kazakouski, Valery"]
[Black "Koelle, Tobias"]
[WhiteFideId "13507443"]
[BlackFideId "16207378"]
[WhiteElo "2524"]
[BlackElo "2541"]
[Result "1-0"]
[Round "07"]
[TimeControl "180+1"]
[Date "2022.05.03"]
[WhiteClock "0:00:57"]
[BlackClock "0:00:02"]

1. d4 {[%clk 0:03:00]}  Nc6 {[%clk 0:02:58]} 2. d5 {[%clk 0:03:00]}  Ne5 {[%clk 0:02:58]} 3. f4 {[%clk 0:02:58]}  Ng6 {[%clk 0:02:55]} 4. e4 {[%clk 0:02:58]}  e6 {[%clk 0:02:54]} 5. dxe6 {[%clk 0:02:59]}  fxe6 {[%clk 0:02:55]} 6. Nf3 {[%clk 0:02:57]}  Bc5 {[%clk 0:02:54]} 7. Bd3 {[%clk 0:02:57]}  Nf6 {[%clk 0:02:53]} 8. g3 {[%clk 0:02:54]}  O-O {[%clk 0:02:52]} 9. e5 {[%clk 0:02:42]}  Ng4 {[%clk 0:02:49]} 10. Ng5 {[%clk 0:02:38]}  Bf2+ {[%clk 0:02:23]} 11. Kf1 {[%clk 0:02:21]}  N6xe5 {[%clk 0:02:16]} 12. Bxh7+ {[%clk 0:02:16]}  Kh8 {[%clk 0:02:15]} 13. Kg2 {[%clk 0:02:06]}  b6 {[%clk 0:02:03]} 14. fxe5 {[%clk 0:02:04]}  Nh6 {[%clk 0:01:05]} 15. Be4 {[%clk 0:01:59]}  d5 {[%clk 0:01:04]} 16. exd6 {[%clk 0:01:58]}  Rb8 {[%clk 0:01:05]} 17. Rf1 {[%clk 0:01:53]}  Bc5 {[%clk 0:00:56]} 18. Rxf8+ {[%clk 0:01:28]}  Qxf8 {[%clk 0:00:57]} 19. dxc7 {[%clk 0:01:29]}  Qf2+ {[%clk 0:00:56]} 20. Kh1 {[%clk 0:01:26]}  Ng4 {[%clk 0:00:40]} 21. Nf3 {[%clk 0:00:58]}  Rb7 {[%clk 0:00:01]} 22. Qd8+ {[%clk 0:00:57]}  Bf8 {[%clk 0:00:02]} 23. Qxf8# {[%clk 0:00:57]} 1-0


[Site "https://www.chess.com"]

[Event "Titled Tuesday Blitz May 03 Late 2022"]
[White "Keymer, Vincent"]
[Black "Tisaj, Domen"]
[WhiteFideId "12940690"]
[BlackFideId "14628708"]
[WhiteElo "2557"]
[BlackElo "2333"]
[Result "1-0"]
[Round "07"]
[TimeControl "180+1"]
[Date "2022.05.03"]
[WhiteClock "0:00:28"]
[BlackClock "0:00:01"]

1. Nf3 {[%clk 0:03:00]}  Nf6 {[%clk 0:02:50]} 2. c4 {[%clk 0:03:00]}  b6 {[%clk 0:02:48]} 3. d4 {[%clk 0:02:57]}  e6 {[%clk 0:02:46]} 4. g3 {[%clk 0:02:57]}  Bb7 {[%clk 0:02:44]} 5. Bg2 {[%clk 0:02:55]}  Be7 {[%clk 0:02:44]} 6. O-O {[%clk 0:02:55]}  O-O {[%clk 0:02:45]} 7. Nc3 {[%clk 0:02:55]}  Ne4 {[%clk 0:02:45]} 8. Bd2 {[%clk 0:02:55]}  Nxc3 {[%clk 0:02:41]} 9. Bxc3 {[%clk 0:02:55]}  Be4 {[%clk 0:02:40]} 10. d5 {[%clk 0:02:45]}  exd5 {[%clk 0:02:26]} 11. cxd5 {[%clk 0:02:44]}  Bf6 {[%clk 0:02:25]} 12. Rc1 {[%clk 0:02:34]}  Na6 {[%clk 0:02:04]} 13. a3 {[%clk 0:02:03]}  Bxc3 {[%clk 0:01:42]} 14. Rxc3 {[%clk 0:02:01]}  Qf6 {[%clk 0:01:41]} 15. Qd4 {[%clk 0:01:53]}  Qxd4 {[%clk 0:01:02]} 16. Nxd4 {[%clk 0:01:54]}  Bxg2 {[%clk 0:01:03]} 17. Kxg2 {[%clk 0:01:52]}  Rfe8 {[%clk 0:01:03]} 18. f3 {[%clk 0:01:48]}  c5 {[%clk 0:00:46]} 19. dxc6 {[%clk 0:01:44]}  dxc6 {[%clk 0:00:47]} 20. Rxc6 {[%clk 0:01:16]}  Rad8 {[%clk 0:00:46]} 21. Rc4 {[%clk 0:01:15]}  b5 {[%clk 0:00:46]} 22. Nxb5 {[%clk 0:01:14]}  Rd2 {[%clk 0:00:38]} 23. Rf2 {[%clk 0:00:55]}  Rxb2 {[%clk 0:00:35]} 24. Nd6 {[%clk 0:00:54]}  Rd8 {[%clk 0:00:31]} 25. e4 {[%clk 0:00:50]}  Rxf2+ {[%clk 0:00:20]} 26. Kxf2 {[%clk 0:00:51]}  g6 {[%clk 0:00:20]} 27. e5 {[%clk 0:00:46]}  Rb8 {[%clk 0:00:20]} 28. Rc6 {[%clk 0:00:39]}  Rb2+ {[%clk 0:00:19]} 29. Ke3 {[%clk 0:00:40]}  Nb8 {[%clk 0:00:19]} 30. Rc8+ {[%clk 0:00:40]}  Kg7 {[%clk 0:00:20]} 31. Rc7 {[%clk 0:00:40]}  Rb3+ {[%clk 0:00:18]} 32. Kf4 {[%clk 0:00:41]}  g5+ {[%clk 0:00:17]} 33. Ke4 {[%clk 0:00:37]}  Rxa3 {[%clk 0:00:17]} 34. e6 {[%clk 0:00:37]}  Ra4+ {[%clk 0:00:13]} 35. Kf5 {[%clk 0:00:36]}  Ra5+ {[%clk 0:00:12]} 36. Kg4 {[%clk 0:00:35]}  Ra6 {[%clk 0:00:12]} 37. Nf5+ {[%clk 0:00:33]}  Kf6 {[%clk 0:00:11]} 38. exf7 {[%clk 0:00:32]}  Kg6 {[%clk 0:00:01]} 39. f8=Q {[%clk 0:00:28]} 1-0


[Site "https://www.chess.com"]

[Event "Titled Tuesday Blitz May 03 Late 2022"]
[White "Kollars, Dmitrij"]
[Black "Jones, Gawain C B"]
[WhiteFideId "12909572"]
[BlackFideId "409561"]
[WhiteElo "2584"]
[BlackElo "2657"]
[Result "1/2-1/2"]
[Round "07"]
[TimeControl "180+1"]
[Date "2022.05.03"]
[WhiteClock "0:00:37"]
[BlackClock "0:00:20"]

1. e4 {[%clk 0:03:00]}  e5 {[%clk 0:02:59]} 2. Nf3 {[%clk 0:03:00]}  Nc6 {[%clk 0:03:00]} 3. Bc4 {[%clk 0:02:58]}  Nf6 {[%clk 0:02:59]} 4. d3 {[%clk 0:02:58]}  Bc5 {[%clk 0:02:57]} 5. Nc3 {[%clk 0:02:58]}  a6 {[%clk 0:02:56]} 6. Bg5 {[%clk 0:02:58]}  h6 {[%clk 0:02:56]} 7. Bxf6 {[%clk 0:02:58]}  Qxf6 {[%clk 0:02:55]} 8. Nd5 {[%clk 0:02:59]}  Qd8 {[%clk 0:02:56]} 9. c3 {[%clk 0:02:59]}  d6 {[%clk 0:02:55]} 10. d4 {[%clk 0:03:00]}  Ba7 {[%clk 0:02:55]} 11. dxe5 {[%clk 0:02:59]}  Nxe5 {[%clk 0:02:53]} 12. Nxe5 {[%clk 0:02:59]}  dxe5 {[%clk 0:02:54]} 13. Qh5 {[%clk 0:02:59]}  O-O {[%clk 0:02:49]} 14. Qxe5 {[%clk 0:02:59]}  Re8 {[%clk 0:02:37]} 15. Qf4 {[%clk 0:02:58]}  Be6 {[%clk 0:02:37]} 16. O-O-O {[%clk 0:02:48]}  Qg5 {[%clk 0:02:27]} 17. Qxg5 {[%clk 0:02:18]}  hxg5 {[%clk 0:02:28]} 18. Bb3 {[%clk 0:02:19]}  Bxd5 {[%clk 0:02:23]} 19. Rxd5 {[%clk 0:02:19]}  Rxe4 {[%clk 0:02:18]} 20. Rd7 {[%clk 0:02:16]}  Rf4 {[%clk 0:02:10]} 21. f3 {[%clk 0:02:16]}  Bb6 {[%clk 0:01:48]} 22. Re1 {[%clk 0:02:12]}  Rf8 {[%clk 0:01:47]} 23. Ree7 {[%clk 0:02:10]}  g6 {[%clk 0:01:40]} 24. Kd1 {[%clk 0:01:53]}  Bc5 {[%clk 0:01:34]} 25. Re5 {[%clk 0:01:53]}  Bd6 {[%clk 0:01:31]} 26. Rxg5 {[%clk 0:01:51]}  Kg7 {[%clk 0:01:29]} 27. Rd5 {[%clk 0:01:37]}  Re8 {[%clk 0:01:22]} 28. Rd4 {[%clk 0:01:34]}  Rxd4+ {[%clk 0:01:11]} 29. cxd4 {[%clk 0:01:33]}  Re7 {[%clk 0:01:06]} 30. Rxe7 {[%clk 0:01:21]}  Bxe7 {[%clk 0:01:07]} 31. Ke2 {[%clk 0:01:21]}  b6 {[%clk 0:01:03]} 32. Kd3 {[%clk 0:01:20]}  Bd6 {[%clk 0:01:01]} 33. g3 {[%clk 0:01:20]}  g5 {[%clk 0:00:55]} 34. Ke4 {[%clk 0:01:19]}  Kg6 {[%clk 0:00:53]} 35. Bc4 {[%clk 0:01:17]}  a5 {[%clk 0:00:52]} 36. Bb5 {[%clk 0:01:17]}  f5+ {[%clk 0:00:52]} 37. Kd5 {[%clk 0:01:16]}  Kf6 {[%clk 0:00:52]} 38. Bd7 {[%clk 0:01:14]}  f4 {[%clk 0:00:40]} 39. gxf4 {[%clk 0:01:01]}  Bxf4 {[%clk 0:00:40]} 40. h3 {[%clk 0:01:02]}  Ke7 {[%clk 0:00:39]} 41. Bc8 {[%clk 0:01:01]}  Kf6 {[%clk 0:00:39]} 42. Ke4 {[%clk 0:01:01]}  Bd6 {[%clk 0:00:39]} 43. b3 {[%clk 0:01:01]}  Bg3 {[%clk 0:00:38]} 44. Ke3 {[%clk 0:01:00]}  Bf4+ {[%clk 0:00:38]} 45. Kd3 {[%clk 0:01:00]}  Bd6 {[%clk 0:00:37]} 46. Ke4 {[%clk 0:00:55]}  Bg3 {[%clk 0:00:37]} 47. Bg4 {[%clk 0:00:55]}  Bd6 {[%clk 0:00:36]} 48. f4 {[%clk 0:00:55]}  gxf4 {[%clk 0:00:25]} 49. h4 {[%clk 0:00:55]}  Kg6 {[%clk 0:00:25]} 50. Bd1 {[%clk 0:00:52]}  Kf6 {[%clk 0:00:25]} 51. Kf3 {[%clk 0:00:52]}  Kg6 {[%clk 0:00:21]} 52. Kg4 {[%clk 0:00:52]}  Be7 {[%clk 0:00:19]} 53. h5+ {[%clk 0:00:51]}  Kh6 {[%clk 0:00:19]} 54. Kxf4 {[%clk 0:00:52]}  Bd6+ {[%clk 0:00:18]} 55. Kf5 {[%clk 0:00:52]}  Bh2 {[%clk 0:00:18]} 56. d5 {[%clk 0:00:33]}  Bd6 {[%clk 0:00:19]} 57. Be2 {[%clk 0:00:34]}  Bh2 {[%clk 0:00:19]} 58. Bd1 {[%clk 0:00:35]}  Bd6 {[%clk 0:00:20]} 59. Be2 {[%clk 0:00:36]}  Bh2 {[%clk 0:00:20]} 60. Bd1 {[%clk 0:00:37]} 1/2-1/2


[Site "https://www.chess.com"]